bitfinex-derivatives/quotes_SOLF0:USTF0_20250520
["timestamp","ask_amount","ask_price","bid_price","bid_amount"]
[1747754467033,6.0166,166.16,166.13,6.0173]
[1747754467443,6.05496564,166.17,166.14,6.0172]
[1747754467741,2.91748679,166.16,166.1,61.94]
[1747754467937,0.03866564,166.17,166.1,61.94]
[1747754468138,2.9175994,166.16,166.14,6.017]
[1747754468330,6.05486564,166.17,166.1,61.94]
[1747754468331,0.03866564,166.17,166.1,61.94]
[1747754468741,0.03866564,166.17,166.15,6.0166]
[1747754468942,0.03866564,166.17,166.1,61.94]
[1747754470244,0.03866564,166.17,166.16,6.0165]
[1747754471840,1.968,166.24,166.23,6.014]
[1747754472146,2.91473523,166.24,166.23,6.014]
[1747754474148,2.91473523,166.24,166.22,0.04126297]
[1747754474348,2.91473523,166.23,166.22,0.04126297]
[1747754474650,2.91473523,166.24,166.22,0.04126297]
[1747754474844,2.91473523,166.23,166.22,0.04126297]
[1747754475347,2.91473523,166.24,166.22,0.04126297]
[1747754475546,2.91473523,166.23,166.22,0.04126297]
[1747754475747,2.91557321,166.23,166.22,0.04126297]
[1747754476049,8.92957321,166.23,166.22,0.04126297]
[1747754476651,2.91557321,166.23,166.22,0.04126297]
[1747754477751,8.92957321,166.23,166.22,0.04126297]
[1747754478553,6.0147,166.21,166.18,61.94]
[1747754478753,6.0147,166.21,166.15,61.94]
[1747754479050,6.0157,166.19,166.16,6.0164]
[1747754479448,6.05693956,166.19,166.16,6.0164]
[1747754479652,6.0158,166.18,166.16,6.0164]
[1747754479853,6.0158,166.18,166.15,6.0167]
[1747754480954,6.0164,166.17,166.14,6.0171]
[1747754481148,0.04123956,166.19,166.12,62.9555636]
[1747754481346,0.04123956,166.19,166.12,61.94]
[1747754481347,2.91593848,166.18,166.12,61.94]
[1747754481548,6.0164,166.17,166.14,6.017]
[1747754481842,0.04123956,166.19,166.12,61.94]
[1747754482048,2.91545515,166.18,166.12,61.94]
[1747754482249,6.0161,166.18,166.14,6.0169]
[1747754482554,0.04123956,166.19,166.14,6.0169]
[1747754482753,6.0163,166.17,166.12,61.94]
[1747754482953,0.04123956,166.19,166.12,61.94]
[1747754483255,2.91466439,166.18,166.12,61.94]
[1747754483449,0.04123956,166.19,166.12,61.94]
[1747754483751,6.0165,166.16,166.13,6.0175]
[1747754483949,10.07714576,166.18,166.09,61.94]
[1747754484148,0.04184763,166.15,166.09,61.94]
[1747754484343,0.04184763,166.15,166.07,1.0155636]
[1747754485057,6.0178,166.13,166.09,6.0189]
[1747754485353,0.04184763,166.15,166.07,1.0155636]
[1747754485552,0.04496918,166.13,166.07,1.0155636]
[1747754486056,2.91308508,166.12,166.07,1.0155636]
[1747754486257,0.04496918,166.13,166.07,1.0155636]
[1747754486460,74.9502055,166.12,166.07,1.0155636]
[1747754486753,6.0194,166.08,166.07,1.0155636]
[1747754486950,2.91164598,166.08,166.05,1.32601304]
[1747754487151,2.91164598,166.07,166.0,61.96]
[1747754487351,0.04629597,166.05,166.0,61.96]
[1747754488161,0.04629597,166.05,166.02,6.0213]
[1747754489465,6.06689597,166.05,166.02,6.0213]
[1747754490158,0.04629597,166.05,165.99,1.01567637]
[1747754490660,0.04629597,166.05,165.98,61.96]
[1747754490961,6.021,166.04,166.0,6.0223]
[1747754491153,0.04629597,166.05,166.0,6.0223]
[1747754491353,6.0214,166.03,166.0,6.0223]
[1747754491761,0.04629597,166.05,166.01,6.0217]
[1747754492457,0.04629597,166.05,165.98,61.96]
[1747754493265,0.04629597,166.05,166.04,6.0209]
[1747754494663,0.04629597,166.05,166.02,61.98]
[1747754494851,0.04629597,166.05,165.97,530.01714576]
[1747754495051,6.06689597,166.05,166.01,6.0217]
[1747754495255,0.04629597,166.05,165.98,61.94]
[1747754495763,0.04629597,166.05,166.04,6.0209]
[1747754496865,0.04629597,166.05,165.98,61.94]
[1747754498966,6.06689597,166.05,165.98,61.94]
[1747754499366,0.04629597,166.05,165.98,61.94]
[1747754499569,0.04629597,166.05,166.03,6.0212]
[1747754500066,0.04629597,166.05,165.98,61.94]
[1747754500067,6.021,166.04,166.01,6.0218]
[1747754500967,0.04629597,166.05,165.98,61.94]
[1747754503565,0.04629597,166.05,166.03,6.021]
[1747754504268,6.06689597,166.05,166.02,6.0215]
[1747754504463,0.04629597,166.05,165.98,61.94]
[1747754504672,10.07714576,166.04,165.95,63.8943]
[1747754504871,0.04059936,166.01,165.95,63.8943]
[1747754505271,0.04059936,166.01,165.95,61.94]
[1747754505869,2.90311486,166.0,165.92,61.94]
[1747754506170,6.0244,165.95,165.92,6.0249]
[1747754506378,10.12027695,165.98,165.89,61.94]
[1747754506565,0.04274863,165.95,165.89,61.94]
[1747754507975,6.0246,165.94,165.91,6.0254]
[1747754508179,0.04274863,165.95,165.89,61.94]
[1747754508568,0.04274863,165.95,165.94,6.0245]
[1747754509577,0.04274863,165.95,165.93,6.0247]
[1747754509768,0.04274863,165.95,165.89,61.94]
[1747754509975,0.04274863,165.95,165.94,6.0245]
[1747754511584,12.0377,166.1,165.93,61.96]
[1747754511779,63.9421,166.06,165.94,12.11664576]
[1747754512086,6.0213,166.03,165.94,14.10554576]
[1747754512389,63.9421,166.06,165.95,61.96]
[1747754512588,0.04267575,166.02,165.99,0.03814134]
[1747754512789,0.04267575,166.02,165.99,6.06074134]
[1747754513090,6.06437575,166.02,165.99,0.03814134]
[1747754513587,6.0223,166.0,165.99,0.03814134]
[1747754516084,6.024,165.96,165.92,61.96]
[1747754516387,61.96,166.02,165.89,61.96]
[1747754516589,61.96,166.02,165.93,6.0248]
[1747754516590,4.97125799,166.01,165.93,6.0248]
[1747754516890,6.0242,165.95,165.89,61.96]
[1747754517089,0.0388152,165.94,165.89,61.96]
[1747754517291,0.0388152,165.94,165.92,6.025]
[1747754517590,0.0388152,165.94,165.89,61.96]
[1747754518485,0.0388152,165.94,165.92,6.025]
[1747754518795,0.0388152,165.94,165.89,61.96]
[1747754520289,0.0388152,165.94,165.92,6.025]
[1747754520491,0.0388152,165.94,165.89,61.96]
[1747754520897,0.0388152,165.94,165.92,6.0249]
[1747754521396,0.0388152,165.94,165.89,61.96]
[1747754522595,0.0388152,165.94,165.92,6.0249]
[1747754522987,0.0388152,165.94,165.89,61.96]
[1747754523191,0.0388152,165.94,165.93,6.0249]
[1747754523493,0.0388152,165.94,165.93,68.0049]
[1747754528399,1.9821,166.06,165.93,68.0]
[1747754528599,2.91470354,166.03,165.94,3.8303]
[1747754528802,2.91470354,166.02,165.94,3.8303]
[1747754529002,2.91470354,166.01,166.0,6.0223]
[1747754529397,2.91470354,166.01,165.99,0.03871044]
[1747754529596,2.91470354,166.0,165.99,6.06111044]
[1747754530003,2.91470354,166.01,165.99,6.06111044]
[1747754530395,0.04418493,166.02,166.01,6.022]
[1747754530897,2.96295631,166.02,166.01,6.022]
[1747754531895,0.21847,166.04,165.99,0.03871044]
[1747754532106,2.91978008,166.03,165.99,0.03871044]
[1747754532301,0.21847,166.04,165.99,0.03871044]
[1747754532501,2.91978251,166.03,166.02,6.0212]
[1747754532702,0.21847,166.04,165.99,0.03871044]
[1747754532900,0.0409928,166.03,165.99,0.03871044]
[1747754533099,0.0409928,166.03,166.02,6.0216]
[1747754533907,0.0409928,166.03,166.01,61.94]
[1747754534101,0.0409928,166.03,165.99,61.97871044]
[1747754534300,6.0623928,166.03,165.99,61.97871044]
[1747754535207,6.0623928,166.03,166.0,6.0222]
[1747754535408,2.9200605,166.02,165.99,61.97871044]
[1747754535609,0.0409928,166.03,165.99,61.97871044]
[1747754535610,2.9200605,166.01,165.99,0.03871044]
[1747754535811,0.0409928,166.03,165.99,6.06131044]
[1747754536108,8.94218855,166.02,165.99,6.06131044]
[1747754536309,2.92028855,166.01,166.0,6.0223]
[1747754536802,6.0623928,166.03,166.0,6.0223]
[1747754537002,2.92024809,166.02,166.0,6.0223]
[1747754537301,6.0623928,166.03,166.0,6.0223]
[1747754537610,2.92011876,166.02,166.01,6.022]
[1747754538705,2.92011876,166.02,165.99,0.03871044]
[1747754538909,0.0409928,166.03,165.99,0.03871044]
[1747754539107,2.9206817,166.02,165.99,0.03871044]
[1747754539310,6.0223,166.0,165.99,0.03871044]
[1747754539610,2.9206817,166.0,165.91,1.32601304]
[1747754539805,10.12482386,165.98,165.91,7.35141304]
[1747754539998,2.9206817,165.97,165.91,7.35141304]
[1747754540201,2.9206817,165.96,165.91,7.35141304]
[1747754540407,8.98976648,165.95,165.92,6.07042389]
[1747754540604,0.04468478,165.95,165.92,0.04522389]
[1747754541208,0.04468478,165.95,165.94,6.0245]
[1747754541409,0.04468478,165.95,165.92,0.04522389]
[1747754541613,0.04468478,165.95,165.93,6.0246]
[1747754542511,0.04468478,165.95,165.92,0.04522389]
[1747754543014,0.04468478,165.95,165.93,6.0248]
[1747754543612,0.04468478,165.95,165.92,0.04522389]
[1747754543810,2.92340616,165.94,165.92,0.04522389]
[1747754544014,0.04468478,165.95,165.92,0.04522389]
[1747754544218,2.92361273,165.94,165.92,0.04522389]
[1747754544417,0.04468478,165.95,165.92,0.04522389]
[1747754544716,6.0249,165.93,165.92,0.04522389]
[1747754544919,8.94884072,165.93,165.92,0.04522389]
[1747754545508,2.92394072,165.93,165.85,61.94]
[1747754545710,2.92394072,165.92,165.85,61.94]
[1747754545909,2.92394072,165.91,165.85,67.9678]
[1747754546207,6.0269,165.88,165.85,67.9678]
[1747754546407,2.92394072,165.87,165.86,6.0274]
[1747754546609,0.04340559,165.88,165.86,6.0274]
[1747754546909,0.04340559,165.88,165.85,61.94]
[1747754547103,0.04340559,165.88,165.87,6.027]
[1747754548511,6.0246,165.94,165.91,6.0255]
[1747754548712,2.9230918,165.93,165.85,61.94]
[1747754548910,2.9230918,165.92,165.85,61.94]
[1747754549106,6.025,165.93,165.85,61.94]
[1747754549314,2.92309145,165.92,165.85,61.94]
[1747754549517,0.04465843,165.9,165.87,0.04518675]
[1747754549819,0.04465843,165.9,165.89,6.0263]
[1747754551715,0.04465843,165.9,165.89,67.9863]
[1747754553523,0.04465843,165.9,165.89,61.96]
[1747754554421,0.04465843,165.9,165.89,67.9863]
[1747754554721,0.04465843,165.9,165.89,6.0263]
[1747754556624,0.04465843,165.9,165.88,67.9866]
[1747754556918,0.04465843,165.9,165.88,61.96]
[1747754557222,0.04465843,165.9,165.88,67.9865]
[1747754557524,0.04465843,165.9,165.88,61.96]
[1747754557923,0.04465843,165.9,165.89,6.0263]
[1747754558324,3.962,165.99,165.89,6.02]
[1747754558517,2.92029641,165.98,165.95,6.0241]
[1747754558729,2.92029641,165.97,165.95,6.0241]
[1747754558924,2.92029641,165.96,165.95,6.0241]
[1747754559116,2.92029641,165.96,165.93,61.92]
[1747754559425,0.04221359,165.96,165.93,61.96119155]
[1747754559626,0.04221359,165.96,165.95,6.0241]
[1747754560120,2.96278736,165.96,165.95,6.0241]
[1747754560829,0.04221359,165.96,165.95,6.0241]
[1747754564928,2.96284588,165.96,165.93,0.04119155]
[1747754565133,0.04221359,165.96,165.93,0.04119155]
[1747754565429,2.92072651,165.95,165.93,0.04119155]
[1747754565625,0.04221359,165.96,165.93,0.04119155]
[1747754566133,0.04221359,165.96,165.94,6.0245]
[1747754566324,0.04221359,165.96,165.93,0.04119155]
[1747754566727,0.04221359,165.96,165.93,6.06579155]
[1747754567335,2.92078247,165.95,165.93,0.04119155]
[1747754567634,0.04221359,165.96,165.93,0.04119155]
[1747754567836,2.92084795,165.95,165.93,0.04119155]
[1747754568134,2.9210428,165.94,165.93,6.06599155]
[1747754568634,0.04221359,165.96,165.95,6.0241]
[1747754568829,2.96309497,165.96,165.93,0.04119155]
[1747754569031,2.92088138,165.95,165.93,0.04119155]
[1747754569433,2.92088138,165.95,165.94,6.0242]
[1747754569631,0.04221359,165.96,165.93,0.04119155]
[1747754570239,0.04221359,165.96,165.94,6.0245]
[1747754570437,0.04221359,165.96,165.93,0.04119155]
[1747754570735,2.92058654,165.95,165.93,0.04119155]
[1747754570935,0.04221359,165.96,165.93,0.04119155]
[1747754571144,2.92083297,165.95,165.93,6.06599155]
[1747754571434,6.06621359,165.96,165.93,6.06599155]
[1747754571626,2.92086258,165.95,165.93,0.04119155]
[1747754571826,2.92086258,165.94,165.93,0.04119155]
[1747754572227,2.92086258,165.95,165.93,0.04119155]
[1747754572436,2.92086258,165.94,165.93,0.04119155]
[1747754574741,2.92086258,165.94,165.93,6.06609155]
[1747754575040,0.04221359,165.96,165.93,0.04119155]
[1747754575235,2.92078679,165.95,165.93,0.04119155]
[1747754575436,0.04221359,165.96,165.94,6.0245]
[1747754575637,2.92114573,165.95,165.94,6.0245]
[1747754575939,0.04221359,165.96,165.93,0.04119155]
[1747754576140,0.04221359,165.96,165.95,6.0241]
[1747754576341,2.96314649,165.96,165.95,6.0241]
[1747754577039,0.04221359,165.96,165.95,6.0241]
[1747754578438,0.04221359,165.96,165.94,6.0244]
[1747754578740,0.04221359,165.96,165.93,61.96119155]
[1747754579142,0.04221359,165.96,165.94,6.0243]
[1747754579440,2.924092,165.95,165.94,6.0243]
[1747754580441,0.04221359,165.96,165.95,6.0241]
[1747754580741,2.96809391,165.96,165.95,6.0241]
[1747754582750,2.96809391,165.96,165.93,61.96119155]
[1747754583049,2.92588032,165.95,165.93,0.04119155]
[1747754583239,2.92588032,165.94,165.93,0.04119155]
[1747754583439,2.9296722,165.94,165.93,0.04119155]
[1747754583645,8.9541722,165.94,165.93,0.04119155]
[1747754584441,6.0256,165.91,165.88,1.02012371]
[1747754584740,2.93022108,165.9,165.88,1.02012371]
[1747754584936,6.0256,165.91,165.89,6.0263]
[1747754585136,2.93024778,165.9,165.89,6.0263]
[1747754585447,2.93024778,165.9,165.88,7.09117354]
[1747754585647,2.92980473,165.89,165.88,0.04454983]
[1747754586947,2.92972666,165.89,165.88,0.04454983]
[1747754587242,8.95602666,165.89,165.88,0.04454983]
[1747754587444,2.92972666,165.89,165.88,0.04454983]
[1747754587646,0.03807381,165.91,165.88,61.94454983]
[1747754588244,0.03807381,165.91,165.9,6.0259]
[1747754588745,0.03807381,165.91,165.89,6.0262]
[1747754589551,0.03807381,165.91,165.9,6.026]
[1747754589751,2.96753103,165.91,165.9,6.026]
[1747754590340,2.96753505,165.91,165.88,61.94454983]
[1747754590547,2.92946124,165.9,165.88,0.04454983]
[1747754590749,6.06387381,165.91,165.88,0.04454983]
[1747754590956,2.92957891,165.9,165.88,0.04454983]
[1747754591252,2.92959442,165.89,165.88,0.04454983]
[1747754591448,2.92959442,165.89,165.88,6.07094983]
[1747754591952,2.93023795,165.89,165.88,6.07094983]
[1747754593659,2.93033692,165.89,165.88,6.07094983]
[1747754595556,0.03807381,165.91,165.89,6.0262]
[1747754595752,2.9301348,165.9,165.89,6.0262]
[1747754602161,0.03807381,165.91,165.9,6.0259]
[1747754603257,61.92,166.0,165.97,6.0233]
[1747754603452,2.92981448,165.99,165.93,61.92]
[1747754603758,2.92981448,165.98,165.94,61.92]
[1747754603964,2.92981448,165.97,165.96,6.0238]
[1747754605773,0.03977196,165.98,165.97,6.0234]
[1747754606069,2.96825572,165.98,165.97,6.0234]
[1747754609276,2.96608847,165.98,165.97,6.0234]
[1747754611776,2.96608847,165.98,165.96,6.0235]
[1747754611976,2.92631651,165.97,165.96,6.0235]
[1747754612376,2.92631651,165.97,165.95,0.04047155]
[1747754612582,2.92631651,165.96,165.95,0.04047155]
[1747754614668,8.95011651,165.96,165.95,0.04047155]
[1747754616079,8.94943601,165.96,165.95,0.04047155]
[1747754618978,13.05223165,165.96,165.89,61.9]
[1747754619277,4.83963601,165.95,165.89,61.9]
[1747754619582,10.12659564,165.93,165.87,1.02012371]
[1747754619878,2.92623156,165.92,165.87,1.02012371]
[1747754620075,6.0263,165.9,165.88,0.03879206]
[1747754620275,2.92623156,165.89,165.88,0.03879206]
[1747754622282,8.95253156,165.89,165.88,0.03879206]
[1747754622485,2.92623156,165.89,165.88,0.03879206]
[1747754622969,8.95253156,165.89,165.88,0.03879206]
[1747754624486,8.95044379,165.89,165.88,0.03879206]
[1747754624783,6.0267,165.88,165.87,1.02012371]
[1747754624979,2.92414379,165.88,165.84,1.36104149]
[1747754625179,6.0278,165.85,165.84,1.36104149]
[1747754625381,8.95185981,165.85,165.84,1.36104149]
[1747754625883,2.92405981,165.85,165.84,1.36104149]
[1747754626683,6.07094843,165.86,165.84,1.36104149]
[1747754626884,0.04354843,165.86,165.84,1.36104149]
[1747754627377,0.04354843,165.86,165.79,61.86]
[1747754628285,0.04354843,165.86,165.85,6.0278]
[1747754628476,0.04354843,165.86,165.79,61.86]
[1747754630184,6.0257,165.91,165.81,10.12659564]
[1747754630391,2.91882245,165.9,165.81,10.12659564]
[1747754630590,6.0257,165.91,165.81,10.12659564]
[1747754630792,2.91857447,165.9,165.81,10.12659564]
[1747754630990,6.0257,165.91,165.81,10.12659564]
[1747754631191,0.04133841,165.88,165.84,0.03977921]
[1747754631486,0.04133841,165.88,165.87,6.0268]
[1747754631885,0.04133841,165.88,165.85,61.88]
[1747754632086,0.04133841,165.88,165.85,67.9076]
[1747754632291,0.04133841,165.88,165.85,61.88]
[1747754632997,6.0273,165.87,165.85,61.88]
[1747754633695,6.0274,165.86,165.85,61.88]
[1747754633897,0.04133841,165.88,165.84,0.03995776]
[1747754634097,2.91850926,165.87,165.84,0.03995776]
[1747754634290,6.0278,165.85,165.84,0.03995776]
[1747754634490,8.94579576,165.85,165.84,0.03995776]
[1747754636096,6.0278,165.85,165.84,0.03995776]
[1747754636694,8.9441058,165.85,165.84,0.03995776]
[1747754638195,2.9163058,165.85,165.79,61.88]
[1747754638394,2.9163058,165.84,165.76,582.48]
[1747754638591,2.9163058,165.83,165.76,582.48]
[1747754638790,6.0293,165.81,165.78,6.03]
[1747754639201,6.06763046,165.81,165.78,6.03]
[1747754639999,6.0296,165.8,165.77,6.0306]
[1747754640306,0.03833046,165.81,165.76,582.48]
[1747754640604,6.0298,165.8,165.77,6.0304]
[1747754641403,0.03833046,165.81,165.76,582.48]
[1747754643198,0.03833046,165.81,165.77,61.9]
[1747754643504,0.03833046,165.81,165.79,6.0297]
[1747754643905,0.03833046,165.81,165.77,61.9]
[1747754644106,0.03833046,165.81,165.79,6.0296]
[1747754645503,0.03833046,165.81,165.77,61.9]
[1747754645504,6.0297,165.8,165.77,61.9]
[1747754645806,0.03833046,165.81,165.77,61.9]
[1747754646108,6.06783046,165.81,165.77,61.9]
[1747754646306,0.03833046,165.81,165.77,61.9]
[1747754646605,6.06753046,165.81,165.78,6.0301]
[1747754646806,6.06753046,165.81,165.77,61.9]
[1747754647001,6.06753046,165.81,165.78,6.0302]
[1747754647202,6.0296,165.8,165.77,61.9]
[1747754648212,0.03833046,165.81,165.74,61.9]
[1747754648415,0.04316143,165.79,165.74,61.9]
[1747754649311,0.04316143,165.79,165.78,6.0303]
[1747754650905,0.04316143,165.79,165.78,67.9103]
[1747754651210,2.0009,165.87,165.82,6.0287]
[1747754651508,2.91549008,165.86,165.82,6.0287]
[1747754651712,2.0009,165.87,165.82,6.0287]
[1747754651903,2.91664414,165.86,165.82,6.0287]
[1747754652105,0.04137335,165.86,165.82,6.06775725]
[1747754652306,0.04137335,165.86,165.82,0.03905725]
[1747754653113,0.04137335,165.86,165.83,6.0282]
[1747754653317,0.04137335,165.86,165.82,61.91905725]
[1747754653614,0.04137335,165.86,165.85,6.0278]
[1747754654714,63.8174,165.94,165.9,6.0258]
[1747754654907,61.88,165.94,165.9,6.0258]
[1747754655514,2.92099206,165.93,165.9,6.0258]
[1747754655719,6.06836724,165.93,165.9,5.84342314]
[1747754656013,0.04336724,165.93,165.91,6.0255]
[1747754656217,0.04336724,165.93,165.9,0.04209314]
[1747754656517,0.04336724,165.93,165.9,6.06779314]
[1747754657115,6.06836724,165.93,165.9,0.04209314]
[1747754657316,0.04336724,165.93,165.9,0.04209314]
[1747754657513,2.92360527,165.92,165.9,0.04209314]
[1747754657714,6.0254,165.92,165.9,0.04209314]
[1747754658422,6.06836724,165.93,165.9,0.04209314]
[1747754658618,2.92432964,165.92,165.9,0.04209314]
[1747754658811,0.04336724,165.93,165.9,0.04209314]
[1747754659010,8.94987562,165.92,165.9,0.04209314]
[1747754659209,6.0255,165.92,165.9,0.04209314]
[1747754659611,2.9252903,165.91,165.9,0.04209314]
[1747754660217,6.0255,165.92,165.9,0.04209314]
[1747754660419,6.06836724,165.93,165.9,6.06789314]
[1747754660621,2.92610254,165.92,165.9,6.06789314]
[1747754660816,6.06836724,165.93,165.9,0.04209314]
[1747754661119,8.95123037,165.92,165.9,0.04209314]
[1747754661321,6.0252,165.92,165.9,0.04209314]
[1747754661516,6.0256,165.91,165.9,0.04209314]
[1747754661818,8.95188564,165.91,165.9,0.04209314]
[1747754662416,2.92628564,165.91,165.9,0.04209314]
[1747754662816,0.04336724,165.93,165.9,0.04209314]
[1747754663021,2.92743785,165.92,165.9,6.06799314]
[1747754663319,0.04336724,165.93,165.9,6.06799314]
[1747754663511,2.92794798,165.92,165.9,6.06799314]
[1747754663913,8.95324798,165.92,165.9,0.04209314]
[1747754664222,2.92723262,165.91,165.9,0.04209314]
[1747754664419,6.06826724,165.93,165.9,6.06779314]
[1747754664619,2.92696142,165.92,165.9,6.06779314]
[1747754664821,6.06826724,165.93,165.9,6.06779314]
[1747754665022,2.92694275,165.92,165.9,6.06779314]
[1747754665216,6.0253,165.92,165.9,0.04209314]
[1747754665825,6.06836724,165.93,165.9,0.04209314]
[1747754666022,2.92606152,165.92,165.9,0.04209314]
[1747754666223,6.06836724,165.93,165.9,0.04209314]
[1747754666524,2.92610219,165.92,165.9,0.04209314]
[1747754666821,6.06836724,165.93,165.9,6.06799314]
[1747754667023,2.92602157,165.92,165.9,6.06799314]
[1747754667323,6.06836724,165.93,165.9,6.06799314]
[1747754667524,2.92592483,165.92,165.9,6.06799314]
[1747754667727,6.06836724,165.93,165.9,6.06799314]
[1747754668025,2.92611788,165.92,165.9,6.06799314]
[1747754668327,6.06836724,165.93,165.9,6.06799314]
[1747754668518,2.92604026,165.92,165.9,0.04209314]
[1747754668715,6.06836724,165.93,165.9,0.04209314]
[1747754668921,8.95118986,165.92,165.9,0.04209314]
[1747754669127,6.0254,165.92,165.9,0.04209314]
[1747754670331,2.92548607,165.91,165.9,0.04209314]
[1747754671128,8.95108607,165.91,165.9,0.04209314]
[1747754673131,2.92548607,165.91,165.9,0.04209314]
[1747754673331,0.04336724,165.93,165.91,6.0253]
[1747754673528,2.9240519,165.92,165.91,6.0253]
[1747754673735,0.04336724,165.93,165.91,61.84]
[1747754673930,0.04336724,165.93,165.92,6.0252]
[1747754677227,0.04336724,165.93,165.91,61.84]
[1747754677741,0.04336724,165.93,165.91,67.8655]
[1747754678042,0.04336724,165.93,165.91,61.84]
[1747754678436,0.04336724,165.93,165.91,67.8655]
[1747754678743,0.04336724,165.93,165.91,61.84]
[1747754679041,0.04336724,165.93,165.92,6.0252]
[1747754682245,6.724e-05,165.93,165.92,6.0252]
[1747754686053,6.724e-05,165.93,165.92,69.1452]
[1747754696661,6.724e-05,165.93,165.92,6.0252]
[1747754696864,6.724e-05,165.93,165.92,69.1452]
[1747754699562,6.724e-05,165.93,165.92,6.0252]
[1747754699763,6.724e-05,165.93,165.92,69.1452]
[1747754700556,6.724e-05,165.93,165.92,6.0252]
[1747754706267,6.724e-05,165.93,165.92,69.1452]
[1747754706572,6.724e-05,165.93,165.92,6.0252]
[1747754712772,6.724e-05,165.93,165.91,63.12]
[1747754712969,2.92972503,165.92,165.91,63.12]
[1747754713171,2.92972503,165.92,165.9,0.04209314]
[1747754713370,2.92972503,165.91,165.9,0.04209314]
[1747754714074,6.0252,165.92,165.9,0.04209314]
[1747754714277,2.92933661,165.91,165.9,0.04209314]
[1747754714576,2.92933661,165.91,165.9,6.06809314]
[1747754715874,2.92933937,165.91,165.9,6.06809314]
[1747754716478,6.724e-05,165.93,165.92,6.0252]
[1747754716777,2.93026723,165.93,165.92,68.8652]
[1747754716978,6.724e-05,165.93,165.92,68.8652]
[1747754717175,2.93059641,165.93,165.92,68.8652]
[1747754717573,2.93177959,165.93,165.92,68.8652]
[1747754717777,6.724e-05,165.93,165.92,68.8652]
[1747754718679,2.92877723,165.93,165.92,68.8652]
[1747754719874,2.92877723,165.93,165.91,6.0255]
[1747754720067,2.92870999,165.92,165.91,6.0255]
[1747754720880,2.92817201,165.92,165.91,6.0255]
[1747754722574,2.92766373,165.92,165.91,6.0255]
[1747754723577,6.724e-05,165.93,165.92,6.0252]
[1747754734182,7.48756585,166.05,165.92,63.26]
[1747754734484,2.92981345,166.04,165.95,10.12659564]
[1747754734684,2.92981345,166.03,166.02,6.0216]
[1747754734872,2.92981345,166.03,166.02,68.8616]
[1747754735282,0.04072259,166.04,166.03,6.0212]
[1747754735481,2.96815497,166.04,166.03,6.0212]
[1747754736287,2.96815497,166.04,166.02,62.84]
[1747754736480,2.92492972,166.03,166.02,62.84]
[1747754738087,2.92339254,166.03,166.02,62.84]
[1747754738384,2.92338822,166.03,166.02,62.84]
[1747754739788,2.92199715,166.03,166.02,62.84]
[1747754740286,2.92199715,166.03,166.02,68.8616]
[1747754740986,2.92199715,166.03,166.02,62.84]
[1747754741186,2.92199715,166.03,166.01,0.04043148]
[1747754741379,0.04072259,166.04,166.01,0.04043148]
[1747754742279,2.91942255,166.03,166.01,0.04043148]
[1747754742479,2.91942255,166.02,166.01,0.04043148]
[1747754742678,2.91942255,166.02,166.01,6.06243148]
[1747754744390,2.91942255,166.02,166.01,0.04043148]
[1747754745790,2.91797201,166.02,166.01,0.04043148]
[1747754746891,8.93957201,166.02,166.01,0.04043148]
[1747754747085,2.91797201,166.02,166.01,0.04043148]
[1747754748595,8.93957201,166.02,166.01,0.04043148]
[1747754749495,2.91797201,166.02,166.01,0.04043148]
[1747754749992,0.04072259,166.04,166.01,0.04043148]
[1747754750196,2.91773932,166.03,166.01,0.04043148]
[1747754750399,0.04072259,166.04,166.01,0.04043148]
[1747754751092,0.04072259,166.04,166.01,6.06213148]
[1747754751292,0.04072259,166.04,166.01,0.04043148]
[1747754751482,0.04072259,166.04,166.03,6.0212]
[1747754754996,17.61416149,166.17,166.02,62.1]
[1747754755197,2.91597794,166.16,166.02,62.1]
[1747754755496,2.91597794,166.15,166.09,6.0187]
[1747754755700,6.0176,166.13,166.09,6.0187]
[1747754755887,2.91597794,166.12,166.1,0.04323473]
[1747754756086,6.0176,166.13,166.1,0.04323473]
[1747754756287,2.91455346,166.12,166.1,0.04323473]
[1747754756490,6.0176,166.13,166.1,0.04323473]
[1747754756689,2.91341805,166.12,166.1,0.04323473]
[1747754756894,6.0176,166.13,166.1,0.04323473]
[1747754757097,2.91324744,166.12,166.1,0.04323473]
[1747754757296,6.0176,166.13,166.1,0.04323473]
[1747754757505,2.91213247,166.12,166.1,0.04323473]
[1747754757702,6.062216,166.14,166.1,0.04323473]
[1747754757896,2.91225174,166.13,166.1,0.04323473]